[Event "FIDE Women's Grand Swiss 2023"]
[Site "Villa Marina, Douglas, Isle of Man, Isle Of Man"]
[Date "2023.10.26"]
[Round "2.4"]
[White "Roebers, Eline"]
[Black "Vaishali, Rameshbabu"]
[Result "1/2-1/2"]
[TimeControl "40/90 + 30 + 30s/move"]
[WhiteFideId "1058401"]
[BlackFideId "5091756"]
[WhiteElo "2390"]
[BlackElo "2448"]

1. d4 {[%clk 01:30:57]} {[%emt 00:00:02]} Nf6 {[%clk 01:30:21]} {[%emt
00:00:40]} 2. Nc3 {[%clk 01:31:02]} {[%emt 00:00:25]} d5 {[%clk 01:30:42]}
{[%emt 00:00:08]} 3. Bf4 {[%clk 01:31:27]} {[%emt 00:00:04]} g6 {[%clk
01:29:25]} {[%emt 00:01:47]} 4. e3 {[%clk 01:30:16]} {[%emt 00:01:41]} Bg7
{[%clk 01:29:49]} {[%emt 00:00:06]} 5. h4 {[%clk 01:30:07]} {[%emt 00:00:39]}
h5 {[%clk 01:29:57]} {[%emt 00:00:22]} 6. Nf3 {[%clk 01:29:54]} {[%emt
00:00:43]} O-O {[%clk 01:30:07]} {[%emt 00:00:21]} 7. Qd2 {[%clk 01:27:50]}
{[%emt 00:02:34]} c5 {[%clk 01:20:26]} {[%emt 00:10:11]} 8. Ne5 {[%clk
01:26:56]} {[%emt 00:01:23]} cxd4 {[%clk 01:20:34]} {[%emt 00:00:21]} 9. exd4
{[%clk 01:27:21]} {[%emt 00:00:05]} Nc6 {[%clk 01:20:43]} {[%emt 00:00:21]} 10.
f3 {[%clk 01:27:40]} {[%emt 00:00:12]} Bf5 {[%clk 01:20:15]} {[%emt 00:00:57]}
11. Bb5 {[%clk 01:27:43]} {[%emt 00:00:27]} Nb4 {[%clk 00:59:45]} {[%emt
00:21:01]} 12. Ba4 {[%clk 01:26:35]} {[%emt 00:01:38]} Rc8 {[%clk 00:59:48]}
{[%emt 00:00:26]} 13. a3 {[%clk 01:17:35]} {[%emt 00:09:30]} Nc6 {[%clk
00:43:51]} {[%emt 00:16:27]} 14. Bxc6 {[%clk 01:17:46]} {[%emt 00:00:19]} bxc6
{[%clk 00:44:18]} {[%emt 00:00:02]} 15. Na4 {[%clk 01:18:06]} {[%emt 00:00:10]}
Nd7 {[%clk 00:35:52]} {[%emt 00:08:56]} 16. Nxd7 {[%clk 01:18:06]} {[%emt
00:00:30]} Bxd7 {[%clk 00:32:16]} {[%emt 00:04:07]} 17. O-O-O {[%clk 01:12:03]}
{[%emt 00:06:33]} f6 {[%clk 00:27:35]} {[%emt 00:05:10]} 18. Nc5 {[%clk
01:04:35]} {[%emt 00:07:57]} e5 {[%clk 00:25:48]} {[%emt 00:02:18]} 19. Bh6
{[%clk 00:57:48]} {[%emt 00:07:16]} Qe7 {[%clk 00:23:57]} {[%emt 00:02:21]} 20.
Rde1 {[%clk 00:53:38]} {[%emt 00:04:39]} Rce8 {[%clk 00:21:50]} {[%emt
00:02:38]} 21. Re2 {[%clk 00:49:58]} {[%emt 00:04:11]} Bc8 {[%clk 00:14:31]}
{[%emt 00:07:48]} 22. Rhe1 {[%clk 00:43:57]} {[%emt 00:06:31]} Qd6 {[%clk
00:10:22]} {[%emt 00:04:39]} 23. Bxg7 {[%clk 00:35:34]} {[%emt 00:08:53]} Kxg7
{[%clk 00:10:50]} {[%emt 00:00:02]} 24. Re3 {[%clk 00:35:44]} {[%emt 00:00:20]}
Rf7 {[%clk 00:08:11]} {[%emt 00:03:09]} 25. dxe5 {[%clk 00:29:10]} {[%emt
00:07:04]} fxe5 {[%clk 00:08:27]} {[%emt 00:00:13]} 26. Nd3 {[%clk 00:28:50]}
{[%emt 00:00:50]} e4 {[%clk 00:06:26]} {[%emt 00:02:31]} 27. fxe4 {[%clk
00:28:38]} {[%emt 00:00:43]} dxe4 {[%clk 00:04:05]} {[%emt 00:02:50]} 28. Rxe4
{[%clk 00:25:59]} {[%emt 00:03:08]} Rxe4 {[%clk 00:04:32]} {[%emt 00:00:04]} 29.
Rxe4 {[%clk 00:26:24]} {[%emt 00:00:05]} Rf1+ {[%clk 00:03:43]} {[%emt
00:01:20]} 30. Re1 {[%clk 00:25:22]} {[%emt 00:01:31]} Qf6 {[%clk 00:03:20]}
{[%emt 00:00:53]} 31. g3 {[%clk 00:24:03]} {[%emt 00:01:50]} Be6 {[%clk
00:00:58]} {[%emt 00:02:53]} 32. Qe3 {[%clk 00:22:04]} {[%emt 00:02:28]} Rxe1+
{[%clk 00:00:47]} {[%emt 00:00:42]} 33. Nxe1 {[%clk 00:22:28]} {[%emt
00:00:05]} a6 {[%clk 00:00:40]} {[%emt 00:00:37]} 34. Nd3 {[%clk 00:20:38]}
{[%emt 00:02:20]} Qf1+ {[%clk 00:00:39]} {[%emt 00:00:31]} 35. Kd2 {[%clk
00:17:04]} {[%emt 00:04:05]} Bf5 {[%clk 00:00:47]} {[%emt 00:00:22]} 36. Nf4
{[%clk 00:16:38]} {[%emt 00:00:54]} Qb5 {[%clk 00:00:34]} {[%emt 00:00:44]} 37.
b3 {[%clk 00:16:05]} {[%emt 00:01:03]} Kf7 {[%clk 00:00:36]} {[%emt 00:00:27]}
38. Qc3 {[%clk 00:14:52]} {[%emt 00:01:43]} Qb6 {[%clk 00:00:34]} {[%emt
00:00:33]} 39. Qc4+ {[%clk 00:13:55]} {[%emt 00:01:27]} Kg7 {[%clk 00:00:50]}
{[%emt 00:00:14]} 40. Ne2 {[%clk 00:14:03]} {[%emt 00:00:22]} c5 {[%clk
00:00:40]} {[%emt 00:00:41]} 41. Nf4 {[%clk 00:13:09]} {[%emt 00:01:23]} Qd6+
{[%clk 00:24:09]} {[%emt 00:07:01]} 42. Qd5 {[%clk 00:41:56]} {[%emt 00:01:43]}
Qb6 {[%clk 00:19:17]} {[%emt 00:05:23]} 43. Qe5+ {[%clk 00:39:26]} {[%emt
00:02:59]} Kf7 {[%clk 00:11:05]} {[%emt 00:08:41]} 44. Nd5 {[%clk 00:36:59]}
{[%emt 00:02:58]} Qd8 {[%clk 00:09:36]} {[%emt 00:01:59]} 45. c4 {[%clk
00:35:48]} {[%emt 00:01:40]} a5 {[%clk 00:09:39]} {[%emt 00:00:28]} 46. Qf4
{[%clk 00:30:16]} {[%emt 00:06:02]} Ke6 {[%clk 00:08:06]} {[%emt 00:02:03]} 47.
Qh6 {[%clk 00:28:12]} {[%emt 00:02:34]} Bb1 {[%clk 00:03:10]} {[%emt 00:05:27]}
48. Kc1 {[%clk 00:23:37]} {[%emt 00:05:06]} Bf5 {[%clk 00:03:16]} {[%emt
00:00:23]} 49. Qd2 {[%clk 00:21:41]} {[%emt 00:02:26]} Kf7 {[%clk 00:02:59]}
{[%emt 00:00:47]} 50. Qf4 {[%clk 00:19:46]} {[%emt 00:02:25]} Ke6 {[%clk
00:02:55]} {[%emt 00:00:34]} 51. Qe3+ {[%clk 00:19:02]} {[%emt 00:01:14]} Kd6
{[%clk 00:03:23]} {[%emt 00:00:03]} 52. Qd2 {[%clk 00:16:30]} {[%emt 00:03:02]}
Qh8 {[%clk 00:02:07]} {[%emt 00:01:46]} 53. Nc3+ {[%clk 00:13:49]} {[%emt
00:03:11]} Kc7 {[%clk 00:01:18]} {[%emt 00:01:19]} 54. Qe3 {[%clk 00:13:35]}
{[%emt 00:00:43]} Kc6 {[%clk 00:01:13]} {[%emt 00:00:36]} 55. Qf3+ {[%clk
00:13:11]} {[%emt 00:00:55]} Kc7 {[%clk 00:01:28]} {[%emt 00:00:15]} 56. Nb5+
{[%clk 00:10:50]} {[%emt 00:02:51]} Kb6 {[%clk 00:01:40]} {[%emt 00:00:18]} 57.
Qc3 {[%clk 00:06:37]} {[%emt 00:04:42]} Qxc3+ {[%clk 00:00:43]} {[%emt
00:01:27]} 58. Nxc3 {[%clk 00:07:03]} {[%emt 00:00:05]} Kc6 {[%clk 00:01:11]}
{[%emt 00:00:01]} 59. Nb5 {[%clk 00:05:21]} {[%emt 00:02:13]} Kd7 {[%clk
00:00:35]} {[%emt 00:01:06]} 60. Kd2 {[%clk 00:05:44]} {[%emt 00:00:07]} Kc6
{[%clk 00:00:42]} {[%emt 00:00:23]} 61. Kc3 {[%clk 00:05:56]} {[%emt 00:00:17]}
Be4 {[%clk 00:00:35]} {[%emt 00:00:36]} 62. b4 {[%clk 00:05:38]} {[%emt
00:00:48]} axb4+ {[%clk 00:01:01]} {[%emt 00:00:04]} 63. axb4 {[%clk 00:06:05]}
{[%emt 00:00:03]} Bg2 {[%clk 00:00:50]} {[%emt 00:00:41]} 64. Kb3 {[%clk
00:04:13]} {[%emt 00:02:22]} Bf3 {[%clk 00:01:05]} {[%emt 00:00:15]} 65. Nc3
{[%clk 00:03:30]} {[%emt 00:01:14]} cxb4 {[%clk 00:01:27]} {[%emt 00:00:08]} 66.
Kxb4 {[%clk 00:03:56]} {[%emt 00:00:04]} Kd6 {[%clk 00:01:26]} {[%emt
00:00:31]} 67. c5+ {[%clk 00:03:42]} {[%emt 00:00:44]} Ke5 {[%clk 00:01:43]}
{[%emt 00:00:13]} 68. Kc4 {[%clk 00:04:01]} {[%emt 00:00:12]} Bc6 {[%clk
00:01:06]} {[%emt 00:01:07]} 69. Kd3 {[%clk 00:03:44]} {[%emt 00:00:47]} Kf5
{[%clk 00:01:18]} {[%emt 00:00:19]} 70. Ke3 {[%clk 00:03:23]} {[%emt 00:00:50]}
g5 {[%clk 00:01:18]} {[%emt 00:00:30]} 71. hxg5 {[%clk 00:03:34]} {[%emt
00:00:19]} Kxg5 {[%clk 00:01:45]} {[%emt 00:00:03]} 72. Ne4+ {[%clk 00:03:45]}
{[%emt 00:00:19]} Kf5 {[%clk 00:01:58]} {[%emt 00:00:18]} 73. Nf2 {[%clk
00:03:19]} {[%emt 00:00:56]} Ke5 {[%clk 00:02:10]} {[%emt 00:00:18]} 74. Nd3+
{[%clk 00:03:40]} {[%emt 00:00:08]} Kf5 {[%clk 00:02:23]} {[%emt 00:00:17]} 75.
Kf2 {[%clk 00:03:12]} {[%emt 00:00:57]} Be4 {[%clk 00:01:57]} {[%emt 00:00:57]}
76. Nb4 {[%clk 00:03:32]} {[%emt 00:00:11]} Kg4 {[%clk 00:02:00]} {[%emt
00:00:27]} 77. Na6 {[%clk 00:03:58]} {[%emt 00:00:04]} Bb7 {[%clk 00:01:57]}
{[%emt 00:00:33]} 78. Nc7 {[%clk 00:04:23]} {[%emt 00:00:05]} h4 {[%clk
00:00:59]} {[%emt 00:01:27]} 79. gxh4 {[%clk 00:04:50]} {[%emt 00:00:03]} Kxh4
{[%clk 00:01:26]} {[%emt 00:00:03]} 80. Nd5 {[%clk 00:05:17]} {[%emt 00:00:04]}
Bxd5 {[%clk 00:01:54]} {[%emt 00:00:02]} 81. c6 {[%clk 00:05:43]} {[%emt
00:00:04]} 1/2-1/2

[Event "FIDE Women's Grand Swiss 2023"]
[Site "Villa Marina, Douglas, Isle of Man, Isle Of Man"]
[Date "2023.10.26"]
[Round "2.5"]
[White "Kamalidenova, Meruert"]
[Black "Gunina, Valentina"]
[Result "1-0"]
[TimeControl "40/90 + 30 + 30s/move"]
[WhiteFideId "13712802"]
[BlackFideId "4167570"]
[WhiteElo "2351"]
[BlackElo "2439"]

1. e4 {[%clk 01:30:56]} {[%emt 00:00:04]} c6 {[%clk 01:30:49]} {[%emt
00:00:11]} 2. d4 {[%clk 01:31:20]} {[%emt 00:00:05]} d5 {[%clk 01:31:14]}
{[%emt 00:00:05]} 3. Nd2 {[%clk 01:31:47]} {[%emt 00:00:05]} dxe4 {[%clk
01:31:36]} {[%emt 00:00:07]} 4. Nxe4 {[%clk 01:32:12]} {[%emt 00:00:05]} Nf6
{[%clk 01:31:57]} {[%emt 00:00:09]} 5. Nxf6+ {[%clk 01:32:37]} {[%emt
00:00:05]} exf6 {[%clk 01:32:20]} {[%emt 00:00:08]} 6. c3 {[%clk 01:33:04]}
{[%emt 00:00:03]} Bd6 {[%clk 01:32:17]} {[%emt 00:00:32]} 7. Bd3 {[%clk
01:33:17]} {[%emt 00:00:17]} O-O {[%clk 01:32:32]} {[%emt 00:00:15]} 8. Qc2
{[%clk 01:33:43]} {[%emt 00:00:05]} c5 {[%clk 01:32:36]} {[%emt 00:00:25]} 9.
Ne2 {[%clk 01:31:41]} {[%emt 00:02:32]} h6 {[%clk 01:32:29]} {[%emt 00:00:36]}
10. Be3 {[%clk 01:26:25]} {[%emt 00:05:47]} Qc7 {[%clk 01:30:53]} {[%emt
00:02:05]} 11. dxc5 {[%clk 01:19:44]} {[%emt 00:07:13]} Bxc5 {[%clk 01:31:13]}
{[%emt 00:00:09]} 12. Bf4 {[%clk 01:18:53]} {[%emt 00:01:22]} Qb6 {[%clk
01:30:49]} {[%emt 00:00:51]} 13. O-O {[%clk 01:18:30]} {[%emt 00:00:54]} Nc6
{[%clk 01:29:55]} {[%emt 00:01:23]} 14. b4 {[%clk 01:11:20]} {[%emt 00:07:42]}
Be7 {[%clk 01:28:12]} {[%emt 00:02:11]} 15. Rfe1 {[%clk 01:10:24]} {[%emt
00:01:28]} Be6 {[%clk 01:23:14]} {[%emt 00:05:27]} 16. Ng3 {[%clk 01:08:08]}
{[%emt 00:02:46]} Rfe8 {[%clk 01:19:02]} {[%emt 00:04:40]} 17. Qe2 {[%clk
01:03:35]} {[%emt 00:05:05]} Bf8 {[%clk 01:14:02]} {[%emt 00:05:29]} 18. Qf3
{[%clk 00:57:40]} {[%emt 00:06:26]} Rad8 {[%clk 01:08:15]} {[%emt 00:06:16]} 19.
Nh5 {[%clk 00:50:44]} {[%emt 00:07:26]} Ne5 {[%clk 01:07:49]} {[%emt 00:00:55]}
20. Bxe5 {[%clk 00:46:37]} {[%emt 00:04:38]} fxe5 {[%clk 01:08:10]} {[%emt
00:00:08]} 21. Rxe5 {[%clk 00:46:25]} {[%emt 00:00:42]} Bd6 {[%clk 00:49:04]}
{[%emt 00:19:36]} 22. Re3 {[%clk 00:42:27]} {[%emt 00:04:28]} Qc7 {[%clk
00:45:21]} {[%emt 00:04:12]} 23. h3 {[%clk 00:39:02]} {[%emt 00:03:56]} Kh8
{[%clk 00:34:31]} {[%emt 00:11:19]} 24. Rae1 {[%clk 00:34:40]} {[%emt
00:04:54]} Qxc3 {[%clk 00:29:55]} {[%emt 00:05:06]} 25. Bb5 {[%clk 00:30:40]}
{[%emt 00:04:30]} Qxb4 {[%clk 00:30:13]} {[%emt 00:00:12]} 26. Bxe8 {[%clk
00:30:59]} {[%emt 00:00:10]} Rxe8 {[%clk 00:30:36]} {[%emt 00:00:08]} 27. a3
{[%clk 00:30:34]} {[%emt 00:00:56]} Qa4 {[%clk 00:27:15]} {[%emt 00:03:48]} 28.
Qxb7 {[%clk 00:29:23]} {[%emt 00:01:44]} Rb8 {[%clk 00:19:38]} {[%emt
00:08:05]} 29. Qf3 {[%clk 00:28:05]} {[%emt 00:01:48]} Rb5 {[%clk 00:16:25]}
{[%emt 00:03:41]} 30. Qc6 {[%clk 00:23:06]} {[%emt 00:05:31]} Bc5 {[%clk
00:14:46]} {[%emt 00:02:07]} 31. Rf3 {[%clk 00:22:21]} {[%emt 00:01:17]} Kh7
{[%clk 00:07:10]} {[%emt 00:08:05]} 32. Rxe6 {[%clk 00:13:14]} {[%emt
00:09:38]} fxe6 {[%clk 00:07:32]} {[%emt 00:00:08]} 33. Nf6+ {[%clk 00:13:05]}
{[%emt 00:00:39]} gxf6 {[%clk 00:07:53]} {[%emt 00:00:10]} 34. Qd7+ {[%clk
00:13:31]} {[%emt 00:00:04]} Kg6 {[%clk 00:06:38]} {[%emt 00:01:44]} 35. Qe8+
{[%clk 00:13:14]} {[%emt 00:00:48]} Kg5 {[%clk 00:04:53]} {[%emt 00:02:14]} 36.
Rg3+ {[%clk 00:11:18]} {[%emt 00:02:26]} Kh4 {[%clk 00:03:41]} {[%emt
00:01:42]} 37. Rg4+ {[%clk 00:11:38]} {[%emt 00:00:10]} Qxg4 {[%clk 00:04:07]}
{[%emt 00:00:05]} 38. hxg4 {[%clk 00:12:05]} {[%emt 00:00:04]} Bxf2+ {[%clk
00:01:07]} {[%emt 00:03:29]} 39. Kxf2 {[%clk 00:12:29]} {[%emt 00:00:05]} Rb2+
{[%clk 00:01:11]} {[%emt 00:00:24]} 40. Ke3 {[%clk 00:12:10]} {[%emt 00:00:50]}
Rb3+ {[%clk 00:00:43]} {[%emt 00:00:58]} 41. Ke4 {[%clk 00:12:07]} {[%emt
00:00:33]} Kg3 {[%clk 00:25:02]} {[%emt 00:06:11]} 42. Qxe6 {[%clk 00:42:18]}
{[%emt 00:00:19]} Rb6 {[%clk 00:25:09]} {[%emt 00:00:22]} 43. Qd7 {[%clk
00:42:15]} {[%emt 00:00:33]} Kxg2 {[%clk 00:22:35]} {[%emt 00:03:06]} 44. Qxa7
{[%clk 00:42:37]} {[%emt 00:00:08]} Rb5 {[%clk 00:21:43]} {[%emt 00:01:17]} 45.
Kf4 {[%clk 00:42:41]} {[%emt 00:00:29]} Rb3 {[%clk 00:21:41]} {[%emt 00:00:30]}
46. Qa8+ {[%clk 00:42:51]} {[%emt 00:00:22]} Kf2 {[%clk 00:20:53]} {[%emt
00:01:16]} 47. a4 {[%clk 00:43:05]} {[%emt 00:00:19]} Rb4+ {[%clk 00:21:09]}
{[%emt 00:00:13]} 48. Qe4 {[%clk 00:42:44]} {[%emt 00:00:51]} 1-0

[Event "FIDE Women's Grand Swiss 2023"]
[Site "Villa Marina, Douglas, Isle of Man, Isle Of Man"]
[Date "2023.10.26"]
[Round "2.6"]
[White "Stefanova, Antoaneta"]
[Black "Savitha, Shri B"]
[Result "1-0"]
[TimeControl "40/90 + 30 + 30s/move"]
[WhiteFideId "2902257"]
[BlackFideId "35061887"]
[WhiteElo "2424"]
[BlackElo "2375"]

1. e4 {[%clk 01:30:57]} {[%emt 00:00:03]} c5 {[%clk 01:29:54]} {[%emt
00:01:06]} 2. Nf3 {[%clk 01:31:20]} {[%emt 00:00:06]} Nc6 {[%clk 01:28:36]}
{[%emt 00:01:49]} 3. Bb5 {[%clk 01:30:53]} {[%emt 00:00:56]} g6 {[%clk
01:28:28]} {[%emt 00:00:39]} 4. O-O {[%clk 01:27:41]} {[%emt 00:03:42]} Bg7
{[%clk 01:28:54]} {[%emt 00:00:04]} 5. d3 {[%clk 01:25:37]} {[%emt 00:02:33]}
d6 {[%clk 01:20:53]} {[%emt 00:08:32]} 6. e5 {[%clk 01:17:13]} {[%emt
00:08:54]} dxe5 {[%clk 01:19:31]} {[%emt 00:01:52]} 7. Re1 {[%clk 01:11:24]}
{[%emt 00:06:19]} Bg4 {[%clk 01:05:00]} {[%emt 00:15:00]} 8. Bxc6+ {[%clk
01:06:15]} {[%emt 00:05:39]} bxc6 {[%clk 01:05:26]} {[%emt 00:00:05]} 9. h3
{[%clk 01:01:01]} {[%emt 00:05:44]} Bxf3 {[%clk 01:01:44]} {[%emt 00:04:12]} 10.
Qxf3 {[%clk 01:01:27]} {[%emt 00:00:04]} Qc7 {[%clk 01:00:10]} {[%emt
00:02:04]} 11. Nd2 {[%clk 00:49:44]} {[%emt 00:12:13]} Nf6 {[%clk 00:56:34]}
{[%emt 00:04:06]} 12. Rxe5 {[%clk 00:45:02]} {[%emt 00:05:11]} Nd5 {[%clk
00:47:00]} {[%emt 00:10:05]} 13. Re4 {[%clk 00:42:40]} {[%emt 00:02:49]} f5
{[%clk 00:43:10]} {[%emt 00:04:21]} 14. Rc4 {[%clk 00:40:16]} {[%emt 00:02:56]}
O-O {[%clk 00:39:35]} {[%emt 00:04:05]} 15. Rxc5 {[%clk 00:37:34]} {[%emt
00:03:12]} Qd6 {[%clk 00:38:38]} {[%emt 00:01:27]} 16. Ra5 {[%clk 00:34:38]}
{[%emt 00:03:23]} e5 {[%clk 00:31:14]} {[%emt 00:07:57]} 17. Nc4 {[%clk
00:33:22]} {[%emt 00:01:46]} Qe6 {[%clk 00:29:34]} {[%emt 00:02:10]} 18. Be3
{[%clk 00:28:57]} {[%emt 00:04:55]} e4 {[%clk 00:27:05]} {[%emt 00:03:00]} 19.
dxe4 {[%clk 00:27:58]} {[%emt 00:01:28]} fxe4 {[%clk 00:15:42]} {[%emt
00:11:53]} 20. Qg4 {[%clk 00:23:57]} {[%emt 00:04:30]} Rf5 {[%clk 00:15:02]}
{[%emt 00:01:11]} 21. Rxa7 {[%clk 00:22:38]} {[%emt 00:01:50]} Rxa7 {[%clk
00:13:21]} {[%emt 00:02:11]} 22. Bxa7 {[%clk 00:23:05]} {[%emt 00:00:02]} h5
{[%clk 00:12:22]} {[%emt 00:01:28]} 23. Qd1 {[%clk 00:18:24]} {[%emt 00:05:11]}
Nf4 {[%clk 00:08:30]} {[%emt 00:04:23]} 24. Ne3 {[%clk 00:18:08]} {[%emt
00:00:46]} Rb5 {[%clk 00:08:55]} {[%emt 00:00:05]} 25. Qd8+ {[%clk 00:15:09]}
{[%emt 00:03:28]} Kh7 {[%clk 00:08:27]} {[%emt 00:00:58]} 26. Rd1 {[%clk
00:13:50]} {[%emt 00:01:48]} Rxb2 {[%clk 00:06:25]} {[%emt 00:02:34]} 27. Rd7
{[%clk 00:13:05]} {[%emt 00:01:14]} Qe5 {[%clk 00:05:50]} {[%emt 00:01:06]} 28.
Qc7 {[%clk 00:04:25]} {[%emt 00:09:10]} Qxc7 {[%clk 00:02:26]} {[%emt
00:03:54]} 29. Rxc7 {[%clk 00:04:54]} {[%emt 00:00:01]} Rxa2 {[%clk 00:02:50]}
{[%emt 00:00:06]} 30. Bb6 {[%clk 00:03:39]} {[%emt 00:01:44]} Ne6 {[%clk
00:01:47]} {[%emt 00:01:34]} 31. Rxc6 {[%clk 00:03:22]} {[%emt 00:00:47]} Ra1+
{[%clk 00:02:13]} {[%emt 00:00:03]} 32. Nf1 {[%clk 00:01:46]} {[%emt 00:02:06]}
Nf4 {[%clk 00:02:32]} {[%emt 00:00:12]} 33. g3 {[%clk 00:02:11]} {[%emt
00:00:05]} Nxh3+ {[%clk 00:02:02]} {[%emt 00:01:00]} 34. Kg2 {[%clk 00:02:40]}
Ng5 {[%clk 00:02:18]} {[%emt 00:00:14]} 35. Nd2 {[%clk 00:00:54]} {[%emt
00:02:16]} Ra6 {[%clk 00:02:01]} {[%emt 00:00:46]} 36. Nb3 {[%clk 00:01:07]}
{[%emt 00:00:17]} Ra4 {[%clk 00:00:51]} {[%emt 00:01:41]} 37. Be3 {[%clk
00:00:37]} {[%emt 00:00:59]} Nf3 {[%clk 00:01:20]} 38. Nd2 {[%clk 00:00:41]}
{[%emt 00:00:28]} Ne1+ {[%clk 00:00:59]} {[%emt 00:00:52]} 39. Kf1 {[%clk
00:00:58]} {[%emt 00:00:12]} Ra1 {[%clk 00:00:50]} {[%emt 00:00:40]} 40. Ke2
{[%clk 00:01:18]} {[%emt 00:00:10]} Rc1 {[%clk 00:00:37]} {[%emt 00:00:44]} 41.
c4 {[%clk 00:15:22]} {[%emt 00:16:25]} Nc2 {[%clk 00:18:58]} {[%emt 00:12:09]}
42. Nxe4 {[%clk 00:15:23]} {[%emt 00:00:29]} Nxe3 {[%clk 00:16:27]} {[%emt
00:03:01]} 43. Kxe3 {[%clk 00:15:26]} {[%emt 00:00:26]} Re1+ {[%clk 00:16:55]}
{[%emt 00:00:03]} 44. Kd3 {[%clk 00:13:53]} {[%emt 00:02:03]} Kh6 {[%clk
00:16:29]} {[%emt 00:00:56]} 45. f4 {[%clk 00:13:31]} {[%emt 00:00:51]} Kh7
{[%clk 00:14:41]} {[%emt 00:02:18]} 46. Ng5+ {[%clk 00:12:32]} {[%emt
00:01:29]} Kh6 {[%clk 00:15:11]} 47. Nf3 {[%clk 00:12:33]} {[%emt 00:00:29]}
Rd1+ {[%clk 00:07:19]} {[%emt 00:08:22]} 48. Ke2 {[%clk 00:12:23]} {[%emt
00:00:40]} Rd8 {[%clk 00:07:08]} {[%emt 00:00:41]} 49. f5 {[%clk 00:10:54]}
{[%emt 00:01:58]} Re8+ {[%clk 00:07:36]} {[%emt 00:00:03]} 50. Kd3 {[%clk
00:09:41]} {[%emt 00:01:42]} Rd8+ {[%clk 00:03:45]} {[%emt 00:04:22]} 51. Ke4
{[%clk 00:09:14]} {[%emt 00:00:57]} Re8+ {[%clk 00:02:26]} {[%emt 00:01:49]} 52.
Re6 {[%clk 00:05:40]} {[%emt 00:04:03]} Rxe6+ {[%clk 00:02:31]} {[%emt
00:00:25]} 53. fxe6 {[%clk 00:06:06]} {[%emt 00:00:04]} Bf8 {[%clk 00:02:44]}
{[%emt 00:00:18]} 54. Kd5 {[%clk 00:06:19]} {[%emt 00:00:17]} Kg7 {[%clk
00:02:50]} {[%emt 00:00:24]} 55. c5 {[%clk 00:06:40]} {[%emt 00:00:09]} Be7
{[%clk 00:02:11]} {[%emt 00:01:09]} 56. c6 {[%clk 00:06:52]} {[%emt 00:00:18]}
Bd8 {[%clk 00:02:36]} {[%emt 00:00:04]} 57. e7 {[%clk 00:06:21]} {[%emt
00:01:01]} 1-0

[Event "FIDE Women's Grand Swiss 2023"]
[Site "Villa Marina, Douglas, Isle of Man, Isle Of Man"]
[Date "2023.10.26"]
[Round "2.7"]
[White "Sandu, Mihaela"]
[Black "Bulmaga, Irina"]
[Result "0-1"]
[TimeControl "40/90 + 30 + 30s/move"]
[WhiteFideId "1204327"]
[BlackFideId "13903063"]
[WhiteElo "2298"]
[BlackElo "2423"]

1. e4 {[%clk 01:30:57]} {[%emt 00:00:03]} e5 {[%clk 01:30:52]} {[%emt
00:00:08]} 2. Nf3 {[%clk 01:31:23]} {[%emt 00:00:04]} Nc6 {[%clk 01:31:15]}
{[%emt 00:00:06]} 3. Bb5 {[%clk 01:31:48]} {[%emt 00:00:06]} a6 {[%clk
01:31:32]} {[%emt 00:00:13]} 4. Ba4 {[%clk 01:32:13]} {[%emt 00:00:04]} d6
{[%clk 01:31:50]} {[%emt 00:00:12]} 5. c3 {[%clk 01:29:06]} {[%emt 00:03:38]}
f5 {[%clk 01:31:56]} {[%emt 00:00:24]} 6. d4 {[%clk 01:27:54]} {[%emt
00:01:42]} fxe4 {[%clk 01:31:22]} {[%emt 00:01:04]} 7. Ng5 {[%clk 01:23:24]}
{[%emt 00:05:01]} exd4 {[%clk 01:14:40]} {[%emt 00:17:11]} 8. O-O {[%clk
01:17:04]} {[%emt 00:06:50]} d5 {[%clk 01:11:35]} {[%emt 00:03:35]} 9. c4
{[%clk 01:15:39]} {[%emt 00:01:56]} b5 {[%clk 01:04:56]} {[%emt 00:07:09]} 10.
cxb5 {[%clk 01:03:55]} {[%emt 00:12:14]} axb5 {[%clk 01:01:14]} {[%emt
00:04:11]} 11. Bxb5 {[%clk 01:02:57]} {[%emt 00:01:28]} Nge7 {[%clk 00:47:25]}
{[%emt 00:14:19]} 12. Nxe4 {[%clk 00:45:40]} {[%emt 00:17:48]} dxe4 {[%clk
00:37:36]} {[%emt 00:10:19]} 13. Qh5+ {[%clk 00:45:57]} {[%emt 00:00:12]} g6
{[%clk 00:35:07]} {[%emt 00:02:58]} 14. Qe5 {[%clk 00:46:10]} {[%emt 00:00:18]}
Bb7 {[%clk 00:34:55]} {[%emt 00:00:42]} 15. Qxh8 {[%clk 00:43:55]} {[%emt
00:02:44]} Qd5 {[%clk 00:33:27]} {[%emt 00:01:59]} 16. Na3 {[%clk 00:43:41]}
{[%emt 00:00:45]} O-O-O {[%clk 00:27:24]} {[%emt 00:06:32]} 17. Qxh7 {[%clk
00:44:01]} {[%emt 00:00:10]} Ne5 {[%clk 00:25:45]} {[%emt 00:02:09]} 18. Bf4
{[%clk 00:42:33]} {[%emt 00:01:58]} Nf5 {[%clk 00:22:08]} {[%emt 00:04:07]} 19.
Bc4 {[%clk 00:39:32]} {[%emt 00:03:32]} Qa5 {[%clk 00:19:20]} {[%emt 00:03:17]}
20. Be6+ {[%clk 00:29:24]} {[%emt 00:10:38]} Kb8 {[%clk 00:19:05]} {[%emt
00:00:46]} 21. Nc4 {[%clk 00:29:37]} {[%emt 00:00:16]} Nxc4 {[%clk 00:18:22]}
{[%emt 00:01:13]} 22. Bxc4 {[%clk 00:30:05]} {[%emt 00:00:03]} Bd6 {[%clk
00:12:03]} {[%emt 00:06:48]} 23. b4 {[%clk 00:16:05]} {[%emt 00:14:30]} Qb6
{[%clk 00:11:22]} {[%emt 00:01:11]} 24. Bg5 {[%clk 00:16:00]} {[%emt 00:00:34]}
Rf8 {[%clk 00:10:54]} {[%emt 00:00:59]} 25. Rac1 {[%clk 00:15:43]} {[%emt
00:00:47]} Be5 {[%clk 00:10:23]} {[%emt 00:01:01]} 26. h3 {[%clk 00:15:09]}
{[%emt 00:01:04]} Bg7 {[%clk 00:05:53]} {[%emt 00:05:00]} 27. Bg8 {[%clk
00:09:46]} {[%emt 00:05:53]} Qd6 {[%clk 00:06:08]} {[%emt 00:00:15]} 28. Rc5
{[%clk 00:09:16]} {[%emt 00:01:00]} e3 {[%clk 00:05:43]} {[%emt 00:00:54]} 29.
fxe3 {[%clk 00:08:47]} {[%emt 00:01:00]} Qg3 {[%clk 00:05:32]} {[%emt
00:00:41]} 30. Bd5 {[%clk 00:08:31]} {[%emt 00:00:47]} Qxg5 {[%clk 00:04:28]}
{[%emt 00:01:33]} 31. Qxg7 {[%clk 00:01:44]} {[%emt 00:07:17]} Nxg7 {[%clk
00:01:40]} {[%emt 00:03:19]} 32. Rxf8+ {[%clk 00:02:07]} {[%emt 00:00:07]} Ka7
{[%clk 00:01:47]} {[%emt 00:00:22]} 33. Ra5+ {[%clk 00:00:37]} {[%emt
00:02:00]} Kb6 {[%clk 00:02:06]} {[%emt 00:00:11]} 34. Rb8 {[%clk 00:00:37]}
{[%emt 00:00:30]} Qxe3+ {[%clk 00:02:18]} {[%emt 00:00:18]} 35. Kf1 {[%clk
00:00:54]} {[%emt 00:00:13]} c6 {[%clk 00:02:04]} {[%emt 00:00:43]} 36. Bf3
{[%clk 00:01:12]} {[%emt 00:00:12]} Nf5 {[%clk 00:01:53]} {[%emt 00:00:41]} 0-1